[Event "Titled Tuesday Blitz November 9 2021"]
[White "Rozman, Levy"]
[Black "Kollars, Dmitrij"]
[WhiteFideId "2039877"]
[BlackFideId "12909572"]
[WhiteElo "2376"]
[BlackElo "2584"]
[Result "0-1"]
[Round "03"]
[TimeControl "180+1"]
[Date "2021.11.09"]
[WhiteClock "0:00:02"]
[BlackClock "0:00:17"]

1. d4 {[%clk 0:03:00]}  Nf6 {[%clk 0:02:59]} 2. c4 {[%clk 0:03:00]}  e6 {[%clk 0:02:59]} 3. Nc3 {[%clk 0:03:00]}  Bb4 {[%clk 0:02:58]} 4. a3 {[%clk 0:03:01]}  Bxc3+ {[%clk 0:02:57]} 5. bxc3 {[%clk 0:03:02]}  Nc6 {[%clk 0:02:54]} 6. f3 {[%clk 0:03:00]}  b6 {[%clk 0:02:52]} 7. e4 {[%clk 0:03:00]}  Ba6 {[%clk 0:02:52]} 8. e5 {[%clk 0:02:56]}  Ng8 {[%clk 0:02:49]} 9. Bd3 {[%clk 0:02:45]}  Na5 {[%clk 0:02:48]} 10. Qe2 {[%clk 0:02:44]}  c5 {[%clk 0:02:32]} 11. d5 {[%clk 0:02:37]}  Bxc4 {[%clk 0:02:31]} 12. d6 {[%clk 0:02:18]}  Bxd3 {[%clk 0:02:23]} 13. Qxd3 {[%clk 0:02:19]}  Qh4+ {[%clk 0:02:23]} 14. g3 {[%clk 0:02:12]}  Qc4 {[%clk 0:02:23]} 15. Ke2 {[%clk 0:02:10]}  f6 {[%clk 0:02:20]} 16. f4 {[%clk 0:01:57]}  Nh6 {[%clk 0:02:17]} 17. Nf3 {[%clk 0:01:49]}  O-O {[%clk 0:02:16]} 18. Qxc4 {[%clk 0:01:43]}  Nxc4 {[%clk 0:02:17]} 19. Kd3 {[%clk 0:01:43]}  b5 {[%clk 0:02:09]} 20. a4 {[%clk 0:01:26]}  a6 {[%clk 0:02:08]} 21. Be3 {[%clk 0:01:17]}  Ng4 {[%clk 0:01:36]} 22. Bxc5 {[%clk 0:01:13]}  fxe5 {[%clk 0:01:37]} 23. h3 {[%clk 0:01:08]}  Rac8 {[%clk 0:01:36]} 24. Ba7 {[%clk 0:00:56]}  Nh6 {[%clk 0:01:03]} 25. axb5 {[%clk 0:00:44]}  axb5 {[%clk 0:01:01]} 26. Nxe5 {[%clk 0:00:24]}  Nxe5+ {[%clk 0:01:01]} 27. fxe5 {[%clk 0:00:24]}  Rf3+ {[%clk 0:01:02]} 28. Ke2 {[%clk 0:00:19]}  Rfxc3 {[%clk 0:00:59]} 29. g4 {[%clk 0:00:15]}  Nf7 {[%clk 0:00:57]} 30. Bd4 {[%clk 0:00:14]}  R3c4 {[%clk 0:00:49]} 31. Ke3 {[%clk 0:00:13]}  Nd8 {[%clk 0:00:48]} 32. Rhd1 {[%clk 0:00:05]}  Nc6 {[%clk 0:00:48]} 33. Rab1 {[%clk 0:00:05]}  b4 {[%clk 0:00:44]} 34. Bb2 {[%clk 0:00:05]}  Rc2 {[%clk 0:00:38]} 35. Rd2 {[%clk 0:00:03]}  Rc5 {[%clk 0:00:22]} 36. Ke4 {[%clk 0:00:02]}  Rc4+ {[%clk 0:00:22]} 37. Ke3 {[%clk 0:00:03]}  b3 {[%clk 0:00:20]} 38. Rd3 {[%clk 0:00:01]}  Na5 {[%clk 0:00:18]} 39. Bd4 {[%clk 0:00:02]}  Rc2 {[%clk 0:00:17]} 40. Bb6 {[%clk 0:00:02]}  Nc4+ {[%clk 0:00:17]} 0-1


[Site "https://www.chess.com"]

[Event "Titled Tuesday Blitz November 9 2021"]
[White "Salinas Herrera, Pablo"]
[Black "Mustafayev, Farid"]
[WhiteFideId "3407128"]
[BlackFideId "13408771"]
[WhiteElo "2541"]
[BlackElo "2091"]
[Result "0-1"]
[Round "03"]
[TimeControl "180+1"]
[Date "2021.11.09"]
[WhiteClock "0:00:01"]
[BlackClock "0:00:35"]

1. e4 {[%clk 0:03:00]}  c6 {[%clk 0:02:59]} 2. Nf3 {[%clk 0:02:56]}  d5 {[%clk 0:02:59]} 3. Nc3 {[%clk 0:02:57]}  dxe4 {[%clk 0:03:00]} 4. Nxe4 {[%clk 0:02:56]}  Nf6 {[%clk 0:03:00]} 5. Qe2 {[%clk 0:02:56]}  Nxe4 {[%clk 0:03:00]} 6. Qxe4 {[%clk 0:02:56]}  Qd5 {[%clk 0:03:01]} 7. Qf4 {[%clk 0:02:54]}  Qf5 {[%clk 0:03:01]} 8. d3 {[%clk 0:02:44]}  Qxf4 {[%clk 0:03:01]} 9. Bxf4 {[%clk 0:02:44]}  Bf5 {[%clk 0:02:58]} 10. O-O-O {[%clk 0:02:42]}  e6 {[%clk 0:02:58]} 11. Nh4 {[%clk 0:02:42]}  Bg4 {[%clk 0:02:56]} 12. f3 {[%clk 0:02:41]}  Bh5 {[%clk 0:02:52]} 13. g4 {[%clk 0:02:42]}  Bg6 {[%clk 0:02:52]} 14. Nxg6 {[%clk 0:02:42]}  hxg6 {[%clk 0:02:52]} 15. h3 {[%clk 0:02:34]}  Nd7 {[%clk 0:02:50]} 16. Bg2 {[%clk 0:02:33]}  Be7 {[%clk 0:02:31]} 17. c3 {[%clk 0:02:32]}  g5 {[%clk 0:02:23]} 18. Bg3 {[%clk 0:02:27]}  Nb6 {[%clk 0:02:13]} 19. Rde1 {[%clk 0:01:44]}  Rd8 {[%clk 0:02:09]} 20. Kc2 {[%clk 0:01:44]}  Nd5 {[%clk 0:02:08]} 21. Bf1 {[%clk 0:01:44]}  Bd6 {[%clk 0:02:03]} 22. Bf2 {[%clk 0:01:42]}  a6 {[%clk 0:01:58]} 23. a3 {[%clk 0:01:35]}  Ke7 {[%clk 0:01:54]} 24. h4 {[%clk 0:01:30]}  gxh4 {[%clk 0:01:48]} 25. Rxh4 {[%clk 0:01:21]}  g5 {[%clk 0:01:48]} 26. Rxh8 {[%clk 0:01:14]}  Rxh8 {[%clk 0:01:49]} 27. Bd4 {[%clk 0:01:10]}  Rh2+ {[%clk 0:01:46]} 28. Re2 {[%clk 0:01:10]}  Rxe2+ {[%clk 0:01:36]} 29. Bxe2 {[%clk 0:01:10]}  Bc7 {[%clk 0:01:35]} 30. Bf2 {[%clk 0:01:04]}  Bb6 {[%clk 0:01:33]} 31. d4 {[%clk 0:01:04]}  e5 {[%clk 0:01:26]} 32. Bd3 {[%clk 0:00:56]}  f6 {[%clk 0:01:20]} 33. Bf5 {[%clk 0:00:54]}  Kd8 {[%clk 0:01:21]} 34. Kd3 {[%clk 0:00:53]}  exd4 {[%clk 0:01:18]} 35. Bxd4 {[%clk 0:00:43]}  Bxd4 {[%clk 0:01:18]} 36. Kxd4 {[%clk 0:00:44]}  Kc7 {[%clk 0:01:14]} 37. c4 {[%clk 0:00:44]}  Ne7 {[%clk 0:01:14]} 38. Be6 {[%clk 0:00:42]}  Kd6 {[%clk 0:01:12]} 39. Bf7 {[%clk 0:00:41]}  b6 {[%clk 0:01:06]} 40. b4 {[%clk 0:00:39]}  c5+ {[%clk 0:01:06]} 41. bxc5+ {[%clk 0:00:39]}  bxc5+ {[%clk 0:01:07]} 42. Ke4 {[%clk 0:00:40]}  Kc7 {[%clk 0:01:06]} 43. Be8 {[%clk 0:00:33]}  Kd8 {[%clk 0:01:05]} 44. Ba4 {[%clk 0:00:33]}  Kc7 {[%clk 0:01:05]} 45. Bc2 {[%clk 0:00:32]}  Kd6 {[%clk 0:01:03]} 46. Bd1 {[%clk 0:00:32]}  Ke6 {[%clk 0:01:00]} 47. Ba4 {[%clk 0:00:31]}  Kd6 {[%clk 0:00:58]} 48. Be8 {[%clk 0:00:28]}  Kc7 {[%clk 0:00:56]} 49. Ba4 {[%clk 0:00:11]}  Kd6 {[%clk 0:00:43]} 50. Bb3 {[%clk 0:00:10]}  Ke6 {[%clk 0:00:41]} 51. Bd1 {[%clk 0:00:09]}  f5+ {[%clk 0:00:38]} 52. gxf5+ {[%clk 0:00:10]}  Nxf5 {[%clk 0:00:39]} 53. Ba4 {[%clk 0:00:03]}  Nd6+ {[%clk 0:00:40]} 54. Kd3 {[%clk 0:00:03]}  Ke5 {[%clk 0:00:41]} 55. Bc6 {[%clk 0:00:04]}  Nf5 {[%clk 0:00:36]} 56. Bd5 {[%clk 0:00:04]}  Nd4 {[%clk 0:00:36]} 57. Kc3 {[%clk 0:00:04]}  Kf4 {[%clk 0:00:35]} 58. a4 {[%clk 0:00:02]}  a5 {[%clk 0:00:34]} 59. Kd3 {[%clk 0:00:02]}  Nxf3 {[%clk 0:00:34]} 60. Ke2 {[%clk 0:00:02]}  Ne5 {[%clk 0:00:35]} 61. Kf2 {[%clk 0:00:02]}  g4 {[%clk 0:00:35]} 62. Kg2 {[%clk 0:00:03]}  Nd3 {[%clk 0:00:35]} 63. Bf7 {[%clk 0:00:02]}  Nb2 {[%clk 0:00:35]} 64. Be6 {[%clk 0:00:01]}  Nxa4 {[%clk 0:00:36]} 65. Kf2 {[%clk 0:00:02]}  Nc3 {[%clk 0:00:36]} 66. Kg2 {[%clk 0:00:01]}  g3 {[%clk 0:00:35]} 0-1


[Site "https://www.chess.com"]

[Event "Titled Tuesday Blitz November 9 2021"]
[White "Seo, Jung Min"]
[Black "Bortnyk, Mykola"]
[WhiteFideId "1734687"]
[BlackFideId "14120836"]
[WhiteElo "2472"]
[BlackElo "2582"]
[Result "0-1"]
[Round "03"]
[TimeControl "180+1"]
[Date "2021.11.09"]
[WhiteClock "0:00:02"]
[BlackClock "0:00:22"]

1. d4 {[%clk 0:03:00]}  d5 {[%clk 0:02:59]} 2. c4 {[%clk 0:03:00]}  e6 {[%clk 0:02:59]} 3. Nf3 {[%clk 0:02:59]}  Nf6 {[%clk 0:02:59]} 4. Nc3 {[%clk 0:02:59]}  Be7 {[%clk 0:02:58]} 5. Bg5 {[%clk 0:02:57]}  O-O {[%clk 0:02:58]} 6. e3 {[%clk 0:02:56]}  Nbd7 {[%clk 0:02:58]} 7. cxd5 {[%clk 0:02:57]}  Nxd5 {[%clk 0:02:57]} 8. Bxe7 {[%clk 0:02:57]}  Qxe7 {[%clk 0:02:57]} 9. Nxd5 {[%clk 0:02:56]}  exd5 {[%clk 0:02:58]} 10. Bd3 {[%clk 0:02:55]}  c6 {[%clk 0:02:54]} 11. O-O {[%clk 0:02:54]}  Nf6 {[%clk 0:02:42]} 12. Qc2 {[%clk 0:02:53]}  g6 {[%clk 0:02:39]} 13. Ne5 {[%clk 0:02:51]}  Ng4 {[%clk 0:02:39]} 14. Nf3 {[%clk 0:02:47]}  Re8 {[%clk 0:02:34]} 15. Rab1 {[%clk 0:02:46]}  a5 {[%clk 0:02:33]} 16. b3 {[%clk 0:02:43]}  Nh6 {[%clk 0:02:32]} 17. Ne5 {[%clk 0:02:32]}  f6 {[%clk 0:02:30]} 18. Nf3 {[%clk 0:02:32]}  Bg4 {[%clk 0:02:27]} 19. Nd2 {[%clk 0:02:30]}  Bf5 {[%clk 0:02:24]} 20. Rfe1 {[%clk 0:02:24]}  Qd6 {[%clk 0:02:21]} 21. h3 {[%clk 0:02:22]}  Kg7 {[%clk 0:02:09]} 22. Rbd1 {[%clk 0:02:21]}  a4 {[%clk 0:01:59]} 23. Qc3 {[%clk 0:02:04]}  axb3 {[%clk 0:01:55]} 24. axb3 {[%clk 0:02:04]}  Bxd3 {[%clk 0:01:48]} 25. Qxd3 {[%clk 0:02:03]}  Nf5 {[%clk 0:01:46]} 26. e4 {[%clk 0:02:02]}  dxe4 {[%clk 0:01:46]} 27. Nxe4 {[%clk 0:02:01]}  Qd5 {[%clk 0:01:44]} 28. Nc5 {[%clk 0:01:58]}  b6 {[%clk 0:01:18]} 29. Na4 {[%clk 0:01:55]}  Rxe1+ {[%clk 0:01:12]} 30. Rxe1 {[%clk 0:01:55]}  Qxd4 {[%clk 0:01:12]} 31. Re7+ {[%clk 0:01:43]}  Kh6 {[%clk 0:01:12]} 32. Qxd4 {[%clk 0:01:42]}  Nxd4 {[%clk 0:01:13]} 33. Nxb6 {[%clk 0:01:40]}  Ra1+ {[%clk 0:01:09]} 34. Kh2 {[%clk 0:01:39]}  Ra2 {[%clk 0:01:05]} 35. Kg1 {[%clk 0:01:36]}  Ne2+ {[%clk 0:00:54]} 36. Kh2 {[%clk 0:01:35]}  Nf4 {[%clk 0:00:53]} 37. Kg3 {[%clk 0:01:23]}  Nd3 {[%clk 0:00:50]} 38. f3 {[%clk 0:01:17]}  g5 {[%clk 0:00:47]} 39. Nd7 {[%clk 0:00:46]}  Kg6 {[%clk 0:00:33]} 40. Re6 {[%clk 0:00:38]}  Rxg2+ {[%clk 0:00:27]} 41. Kxg2 {[%clk 0:00:37]}  Nf4+ {[%clk 0:00:28]} 42. Kg3 {[%clk 0:00:38]}  Nxe6 {[%clk 0:00:29]} 43. b4 {[%clk 0:00:34]}  h5 {[%clk 0:00:29]} 44. Nb8 {[%clk 0:00:33]}  Nd4 {[%clk 0:00:30]} 45. Kf2 {[%clk 0:00:26]}  Kf5 {[%clk 0:00:22]} 46. Nd7 {[%clk 0:00:26]}  Nc2 {[%clk 0:00:21]} 47. Nc5 {[%clk 0:00:17]}  Nxb4 {[%clk 0:00:21]} 48. Kg3 {[%clk 0:00:17]}  h4+ {[%clk 0:00:21]} 49. Kf2 {[%clk 0:00:17]}  Ke5 {[%clk 0:00:20]} 50. Ke3 {[%clk 0:00:07]}  Nd5+ {[%clk 0:00:20]} 51. Kf2 {[%clk 0:00:06]}  Nf4 {[%clk 0:00:21]} 52. Ke3 {[%clk 0:00:05]}  Nxh3 {[%clk 0:00:21]} 53. Nd3+ {[%clk 0:00:04]}  Kf5 {[%clk 0:00:21]} 54. Ne1 {[%clk 0:00:04]}  Nf4 {[%clk 0:00:22]} 55. Kf2 {[%clk 0:00:03]}  c5 {[%clk 0:00:21]} 56. Nc2 {[%clk 0:00:03]}  Ke5 {[%clk 0:00:22]} 57. Ne3 {[%clk 0:00:03]}  Kd4 {[%clk 0:00:22]} 58. Ng4 {[%clk 0:00:02]}  Nd5 {[%clk 0:00:22]} 0-1


[Site "https://www.chess.com"]

[Event "Titled Tuesday Blitz November 9 2021"]
[White "Shimelkov, Vasiliy"]
[Black "Ozen, Deniz"]
[WhiteFideId "13701630"]
[BlackFideId "6349196"]
[WhiteElo "2073"]
[BlackElo "2326"]
[Result "1/2-1/2"]
[Round "03"]
[TimeControl "180+1"]
[Date "2021.11.09"]
[WhiteClock "0:00:15"]
[BlackClock "0:00:22"]

1. d4 {[%clk 0:03:00]}  Nf6 {[%clk 0:02:58]} 2. c4 {[%clk 0:03:00]}  c6 {[%clk 0:02:57]} 3. Nf3 {[%clk 0:02:58]}  d5 {[%clk 0:02:58]} 4. Nc3 {[%clk 0:02:57]}  dxc4 {[%clk 0:02:57]} 5. a4 {[%clk 0:02:57]}  Bf5 {[%clk 0:02:57]} 6. e3 {[%clk 0:02:57]}  e6 {[%clk 0:02:57]} 7. Bxc4 {[%clk 0:02:57]}  Nbd7 {[%clk 0:02:58]} 8. O-O {[%clk 0:02:54]}  Bb4 {[%clk 0:02:55]} 9. Qe2 {[%clk 0:02:52]}  O-O {[%clk 0:02:54]} 10. e4 {[%clk 0:02:53]}  Bg4 {[%clk 0:02:52]} 11. e5 {[%clk 0:02:49]}  Nd5 {[%clk 0:02:50]} 12. Nxd5 {[%clk 0:02:48]}  exd5 {[%clk 0:02:50]} 13. Bd3 {[%clk 0:02:44]}  f6 {[%clk 0:02:50]} 14. Qe3 {[%clk 0:02:18]}  Bxf3 {[%clk 0:02:43]} 15. gxf3 {[%clk 0:02:01]}  fxe5 {[%clk 0:02:43]} 16. dxe5 {[%clk 0:01:59]}  Bc5 {[%clk 0:02:41]} 17. Qe2 {[%clk 0:01:58]}  Qh4 {[%clk 0:02:39]} 18. f4 {[%clk 0:01:55]}  Rxf4 {[%clk 0:02:25]} 19. Bxf4 {[%clk 0:01:52]}  Qxf4 {[%clk 0:02:26]} 20. Rae1 {[%clk 0:01:45]}  Bb4 {[%clk 0:02:22]} 21. Qe3 {[%clk 0:01:40]}  Qg4+ {[%clk 0:02:16]} 22. Kh1 {[%clk 0:01:39]}  Bxe1 {[%clk 0:02:15]} 23. Rxe1 {[%clk 0:01:39]}  Re8 {[%clk 0:02:09]} 24. f4 {[%clk 0:01:37]}  b6 {[%clk 0:01:45]} 25. Rg1 {[%clk 0:01:21]}  Qe6 {[%clk 0:01:43]} 26. Qg3 {[%clk 0:01:18]}  Qe7 {[%clk 0:01:41]} 27. e6 {[%clk 0:01:15]}  Nf6 {[%clk 0:01:37]} 28. f5 {[%clk 0:01:13]}  c5 {[%clk 0:01:36]} 29. b3 {[%clk 0:01:11]}  d4 {[%clk 0:01:29]} 30. Qg2 {[%clk 0:01:07]}  Qc7 {[%clk 0:01:23]} 31. h3 {[%clk 0:01:04]}  Kh8 {[%clk 0:01:22]} 32. Qg3 {[%clk 0:00:59]}  Qxg3 {[%clk 0:01:18]} 33. Rxg3 {[%clk 0:00:58]}  g6 {[%clk 0:01:19]} 34. fxg6 {[%clk 0:00:56]}  hxg6 {[%clk 0:01:17]} 35. Rxg6 {[%clk 0:00:55]}  Rxe6 {[%clk 0:01:16]} 36. Kg2 {[%clk 0:00:53]}  Nd5 {[%clk 0:01:05]} 37. Rxe6 {[%clk 0:00:51]}  Nf4+ {[%clk 0:01:06]} 38. Kf3 {[%clk 0:00:50]}  Nxe6 {[%clk 0:01:06]} 39. h4 {[%clk 0:00:44]}  Kg7 {[%clk 0:01:06]} 40. Ke4 {[%clk 0:00:41]}  Kf6 {[%clk 0:01:04]} 41. a5 {[%clk 0:00:37]}  bxa5 {[%clk 0:01:03]} 42. Bc4 {[%clk 0:00:32]}  Nc7 {[%clk 0:00:45]} 43. h5 {[%clk 0:00:29]}  Kg5 {[%clk 0:00:43]} 44. Ke5 {[%clk 0:00:29]}  Ne8 {[%clk 0:00:18]} 45. Kd5 {[%clk 0:00:28]}  Kxh5 {[%clk 0:00:15]} 46. Kxc5 {[%clk 0:00:27]}  Kg5 {[%clk 0:00:15]} 47. Kxd4 {[%clk 0:00:26]}  Kf6 {[%clk 0:00:15]} 48. Kc5 {[%clk 0:00:25]}  Ke7 {[%clk 0:00:15]} 49. Kb5 {[%clk 0:00:24]}  Kd6 {[%clk 0:00:16]} 50. Kxa5 {[%clk 0:00:22]}  Kc7 {[%clk 0:00:16]} 51. Kb4 {[%clk 0:00:20]}  Kb8 {[%clk 0:00:16]} 52. Kc3 {[%clk 0:00:20]}  Nc7 {[%clk 0:00:17]} 53. Kd3 {[%clk 0:00:20]}  Kb7 {[%clk 0:00:18]} 54. Kc3 {[%clk 0:00:20]}  Kb6 {[%clk 0:00:19]} 55. Kd3 {[%clk 0:00:20]}  Ne8 {[%clk 0:00:19]} 56. Kc3 {[%clk 0:00:20]}  Kc5 {[%clk 0:00:19]} 57. Kd3 {[%clk 0:00:20]}  Kb4 {[%clk 0:00:20]} 58. Kc2 {[%clk 0:00:20]}  Nd6 {[%clk 0:00:20]} 59. Bd5 {[%clk 0:00:20]}  Nb5 {[%clk 0:00:20]} 60. Bg8 {[%clk 0:00:20]}  a5 {[%clk 0:00:20]} 61. Kb2 {[%clk 0:00:20]}  Nd4 {[%clk 0:00:20]} 62. Bf7 {[%clk 0:00:20]}  Ne2 {[%clk 0:00:20]} 63. Bg8 {[%clk 0:00:19]}  Nf4 {[%clk 0:00:21]} 64. Bf7 {[%clk 0:00:19]}  Nd3+ {[%clk 0:00:22]} 65. Kc2 {[%clk 0:00:19]}  Ne5 {[%clk 0:00:23]} 66. Bg8 {[%clk 0:00:18]}  Nd7 {[%clk 0:00:22]} 67. Bf7 {[%clk 0:00:18]}  Nb6 {[%clk 0:00:22]} 68. Kb2 {[%clk 0:00:18]}  Na8 {[%clk 0:00:21]} 69. Bd5 {[%clk 0:00:18]}  Nc7 {[%clk 0:00:21]} 70. Bg8 {[%clk 0:00:18]}  Ne8 {[%clk 0:00:22]} 71. Be6 {[%clk 0:00:18]}  Nf6 {[%clk 0:00:22]} 72. Bf7 {[%clk 0:00:17]}  Ng4 {[%clk 0:00:22]} 73. Bg8 {[%clk 0:00:17]}  Ne3 {[%clk 0:00:21]} 74. Bf7 {[%clk 0:00:17]}  Nf5 {[%clk 0:00:21]} 75. Bg8 {[%clk 0:00:17]}  Nd6 {[%clk 0:00:22]} 76. Be6 {[%clk 0:00:17]}  Nb7 {[%clk 0:00:22]} 77. Bg8 {[%clk 0:00:17]}  Nc5 {[%clk 0:00:23]} 78. Bf7 {[%clk 0:00:17]}  Nd3+ {[%clk 0:00:23]} 79. Kc2 {[%clk 0:00:16]}  Nf4 {[%clk 0:00:23]} 80. Kb2 {[%clk 0:00:15]}  Nd3+ {[%clk 0:00:22]} 1/2-1/2


[Site "https://www.chess.com"]

[Event "Titled Tuesday Blitz November 9 2021"]
[White "Siva Mahadevan"]
[Black "Csonka, Balazs"]
[WhiteFideId "25043153"]
[BlackFideId "742910"]
[WhiteElo "2203"]
[BlackElo "2404"]
[Result "1-0"]
[Round "03"]
[TimeControl "180+1"]
[Date "2021.11.09"]
[WhiteClock "0:00:17"]
[BlackClock "0:00:01"]

1. e4 {[%clk 0:02:59]}  e5 {[%clk 0:02:59]} 2. Nf3 {[%clk 0:03:00]}  Nf6 {[%clk 0:03:00]} 3. Nxe5 {[%clk 0:02:59]}  d6 {[%clk 0:03:00]} 4. Nf3 {[%clk 0:02:59]}  Nxe4 {[%clk 0:03:00]} 5. Bd3 {[%clk 0:02:59]}  Nf6 {[%clk 0:02:57]} 6. O-O {[%clk 0:02:58]}  Be7 {[%clk 0:02:57]} 7. c3 {[%clk 0:02:58]}  O-O {[%clk 0:02:57]} 8. Re1 {[%clk 0:02:59]}  Re8 {[%clk 0:02:57]} 9. Bc2 {[%clk 0:02:58]}  Bg4 {[%clk 0:02:56]} 10. d4 {[%clk 0:02:58]}  Nbd7 {[%clk 0:02:56]} 11. h3 {[%clk 0:02:50]}  Bh5 {[%clk 0:02:56]} 12. Bf5 {[%clk 0:02:50]}  Nf8 {[%clk 0:02:33]} 13. Bf4 {[%clk 0:02:45]}  Bg6 {[%clk 0:02:23]} 14. Nh4 {[%clk 0:02:44]}  Nd5 {[%clk 0:02:10]} 15. Bxg6 {[%clk 0:02:03]}  hxg6 {[%clk 0:02:04]} 16. Bg3 {[%clk 0:02:03]}  Bxh4 {[%clk 0:01:35]} 17. Rxe8 {[%clk 0:02:03]}  Qxe8 {[%clk 0:01:36]} 18. Bxh4 {[%clk 0:02:04]}  Qe4 {[%clk 0:01:36]} 19. Bg3 {[%clk 0:02:00]}  Re8 {[%clk 0:01:36]} 20. Nd2 {[%clk 0:01:58]}  Qe2 {[%clk 0:01:29]} 21. Qxe2 {[%clk 0:01:50]}  Rxe2 {[%clk 0:01:27]} 22. Rd1 {[%clk 0:01:50]}  g5 {[%clk 0:01:10]} 23. Kf1 {[%clk 0:01:50]}  Re8 {[%clk 0:01:11]} 24. c4 {[%clk 0:01:47]}  Nf6 {[%clk 0:01:03]} 25. d5 {[%clk 0:01:43]}  Ng6 {[%clk 0:00:59]} 26. Nb1 {[%clk 0:01:38]}  Ne4 {[%clk 0:00:53]} 27. Bh2 {[%clk 0:01:38]}  f5 {[%clk 0:00:32]} 28. f3 {[%clk 0:01:38]}  Nf6 {[%clk 0:00:27]} 29. Nc3 {[%clk 0:01:35]}  a6 {[%clk 0:00:27]} 30. Bg1 {[%clk 0:01:29]}  Kf7 {[%clk 0:00:25]} 31. Bd4 {[%clk 0:01:26]}  Ne5 {[%clk 0:00:22]} 32. b3 {[%clk 0:01:24]}  Nh5 {[%clk 0:00:17]} 33. Kf2 {[%clk 0:01:24]}  g4 {[%clk 0:00:14]} 34. hxg4 {[%clk 0:01:19]}  fxg4 {[%clk 0:00:15]} 35. Bxe5 {[%clk 0:01:17]}  Rxe5 {[%clk 0:00:16]} 36. fxg4 {[%clk 0:01:17]}  Nf6 {[%clk 0:00:16]} 37. Kf3 {[%clk 0:01:18]}  Nd7 {[%clk 0:00:07]} 38. Rd4 {[%clk 0:01:16]}  Re1 {[%clk 0:00:07]} 39. Rf4+ {[%clk 0:01:13]}  Ke7 {[%clk 0:00:07]} 40. Re4+ {[%clk 0:01:01]}  Ne5+ {[%clk 0:00:07]} 41. Kg3 {[%clk 0:00:56]}  Rc1 {[%clk 0:00:07]} 42. Re3 {[%clk 0:00:56]}  Rc2 {[%clk 0:00:04]} 43. a3 {[%clk 0:00:48]}  Kd7 {[%clk 0:00:04]} 44. Ne2 {[%clk 0:00:46]}  b5 {[%clk 0:00:04]} 45. cxb5 {[%clk 0:00:45]}  axb5 {[%clk 0:00:04]} 46. Nd4 {[%clk 0:00:45]}  Rb2 {[%clk 0:00:05]} 47. Nxb5 {[%clk 0:00:46]}  Rd2 {[%clk 0:00:04]} 48. Rc3 {[%clk 0:00:40]}  c5 {[%clk 0:00:03]} 49. dxc6+ {[%clk 0:00:40]}  Nxc6 {[%clk 0:00:03]} 50. a4 {[%clk 0:00:40]}  d5 {[%clk 0:00:04]} 51. Rc5 {[%clk 0:00:37]}  d4 {[%clk 0:00:03]} 52. Rd5+ {[%clk 0:00:34]}  Ke7 {[%clk 0:00:03]} 53. a5 {[%clk 0:00:33]}  Rd3+ {[%clk 0:00:03]} 54. Kf4 {[%clk 0:00:33]}  Rxb3 {[%clk 0:00:02]} 55. a6 {[%clk 0:00:26]}  Rb4 {[%clk 0:00:01]} 56. Ke4 {[%clk 0:00:20]}  Ra4 {[%clk 0:00:02]} 57. a7 {[%clk 0:00:18]}  Nxa7 {[%clk 0:00:01]} 58. Nxd4 {[%clk 0:00:18]}  Nc6 {[%clk 0:00:02]} 59. g3 {[%clk 0:00:16]}  Nxd4 {[%clk 0:00:02]} 60. Rxd4 {[%clk 0:00:17]}  Ra3 {[%clk 0:00:02]} 61. Kf4 {[%clk 0:00:17]}  Kf7 {[%clk 0:00:03]} 62. Rd7+ {[%clk 0:00:17]}  Kg6 {[%clk 0:00:03]} 63. Rd6+ {[%clk 0:00:17]}  Kf7 {[%clk 0:00:03]} 64. g5 {[%clk 0:00:18]}  Ra4+ {[%clk 0:00:02]} 65. Kf5 {[%clk 0:00:19]}  Ra5+ {[%clk 0:00:03]} 66. Kg4 {[%clk 0:00:19]}  g6 {[%clk 0:00:03]} 67. Rd7+ {[%clk 0:00:19]}  Kg8 {[%clk 0:00:04]} 68. Rc7 {[%clk 0:00:18]}  Rb5 {[%clk 0:00:04]} 69. Kf4 {[%clk 0:00:18]}  Rf5+ {[%clk 0:00:04]} 70. Kg4 {[%clk 0:00:19]}  Ra5 {[%clk 0:00:04]} 71. Re7 {[%clk 0:00:19]}  Rc5 {[%clk 0:00:04]} 72. Re4 {[%clk 0:00:19]}  Kg7 {[%clk 0:00:04]} 73. Rf4 {[%clk 0:00:18]}  Rd5 {[%clk 0:00:04]} 74. Rf6 {[%clk 0:00:18]}  Rd4+ {[%clk 0:00:04]} 75. Kf3 {[%clk 0:00:19]}  Rd5 {[%clk 0:00:04]} 76. Kf4 {[%clk 0:00:19]}  Ra5 {[%clk 0:00:04]} 77. Re6 {[%clk 0:00:18]}  Ra4+ {[%clk 0:00:04]} 78. Re4 {[%clk 0:00:19]}  Ra5 {[%clk 0:00:04]} 79. g4 {[%clk 0:00:18]}  Rb5 {[%clk 0:00:04]} 80. Rd4 {[%clk 0:00:18]}  Ra5 {[%clk 0:00:04]} 81. Rd6 {[%clk 0:00:18]}  Ra4+ {[%clk 0:00:03]} 82. Ke5 {[%clk 0:00:19]}  Ra5+ {[%clk 0:00:03]} 83. Rd5 {[%clk 0:00:19]}  Ra7 {[%clk 0:00:03]} 84. Ke6 {[%clk 0:00:20]}  Ra6+ {[%clk 0:00:03]} 85. Rd6 {[%clk 0:00:20]}  Ra4 {[%clk 0:00:02]} 86. Rd7+ {[%clk 0:00:20]}  Kg8 {[%clk 0:00:01]} 87. Ke7 {[%clk 0:00:17]} 1-0


[Site "https://www.chess.com"]